fUSD/lending_fUSD_20240408
["ID","MTS","AMOUNT","RATE_DAILY","PERIOD"]
[321827393,1712542241671,-500.0,0.00020979,2]
[321827394,1712542241680,-500.0,0.00020979,2]
[321827395,1712542241690,-500.0,0.00020979,2]
[321827396,1712542241699,-500.0,0.00020979,2]
[321827397,1712542241708,-500.0,0.00020979,2]
[321827398,1712542241717,-500.0,0.00020979,2]
[321827399,1712542241726,-500.0,0.00020979,2]
[321827400,1712542241735,-500.0,0.00020979,2]
[321827401,1712542241744,-500.0,0.00020979,2]
[321827402,1712542241753,-500.0,0.00020979,2]
[321827403,1712542241762,-500.0,0.00020979,2]
[321827404,1712542241771,-544.34121432,0.00020979,2]
[321827405,1712542241780,-500.0,0.00020979,2]
[321827406,1712542241789,-511.47227887,0.00020979,2]
[321827407,1712542241799,-500.0,0.00020979,2]
[321827408,1712542241808,-500.0,0.00020979,2]
[321827409,1712542241817,-500.0,0.00020979,2]
[321827410,1712542241826,-500.0,0.00020979,2]
[321827411,1712542241836,-500.0,0.00020979,2]
[321827412,1712542241845,-500.0,0.00020979,2]
[321827413,1712542241854,-500.0,0.00020979,2]
[321827414,1712542241863,-500.0,0.00020979,2]
[321827415,1712542241873,-500.0,0.00020979,2]
[321827416,1712542241882,-500.0,0.00020979,2]
[321827417,1712542241891,-500.0,0.00020979,2]
[321827418,1712542241900,-501.98,0.00020979,2]
[321827419,1712542241909,-501.98,0.00020979,2]
[321827420,1712542241918,-501.98,0.00020979,2]
[321827421,1712542241927,-501.98,0.00020979,2]
[321827422,1712542241936,-501.98,0.00020979,2]
[321827423,1712542241945,-501.98,0.00020979,2]
[321827424,1712542241954,-501.98,0.00020979,2]
[321827425,1712542241964,-501.98,0.00020979,2]
[321827426,1712542241973,-501.98,0.00020979,2]
[321827427,1712542241981,-501.98,0.00020979,2]
[321827428,1712542241990,-501.98,0.00020979,2]
[321827429,1712542241999,-545.52336338,0.00020979,2]
[321827430,1712542242008,-603.35,0.00020979,2]
[321827431,1712542242018,-603.35,0.00020979,2]
[321827432,1712542242027,-603.35,0.00020979,2]
[321827433,1712542242035,-798.49,0.00020979,2]
[321827434,1712542242044,-603.35,0.00020979,2]
[321827435,1712542242053,-798.49,0.00020979,2]
[321827436,1712542242062,-798.49,0.00020979,2]
[321827437,1712542242071,-603.35,0.00020979,2]
[321827438,1712542242079,-798.49,0.00020979,2]
[321827439,1712542242088,-500.0,0.00020979,2]
[321827440,1712542242098,-603.35,0.00020979,2]
[321827441,1712542242109,-798.49,0.00020979,2]
[321827442,1712542242118,-156.30905918,0.00020979,2]
[321827443,1712542242128,-603.35,0.00020979,2]
[321827444,1712542242137,-798.49,0.00020979,2]
[321827445,1712542242147,-603.35,0.00020979,2]
[321827446,1712542242156,-798.49,0.00020979,2]
[321827447,1712542242165,-798.49,0.00020979,2]
[321827448,1712542242174,-603.35,0.00020979,2]
[321827449,1712542242185,-798.49,0.00020979,2]
[321827450,1712542242195,-603.35,0.00020979,2]
[321827451,1712542242204,-798.49,0.00020979,2]
[321827452,1712542242213,-603.35,0.00020979,2]
[321827453,1712542242222,-798.49,0.00020979,2]
[321827454,1712542242231,-368.15155272,0.00020979,2]
[321827455,1712542242240,-500.0,0.00020979,2]
[321827456,1712542242249,-500.0,0.00020979,2]
[321827457,1712542242258,-500.0,0.00020979,2]
[321827458,1712542242269,-500.0,0.00020979,2]
[321827459,1712542242277,-416.42345763,0.00020979,2]
[321827460,1712542242286,-500.0,0.00020979,2]
[321827461,1712542242295,-500.0,0.00020979,2]
[321827462,1712542242305,-500.0,0.00020979,2]
[321827463,1712542242314,-500.0,0.00020979,2]
[321827464,1712542242323,-500.0,0.00020979,2]
[321827465,1712542242333,-500.0,0.00020979,2]
[321827466,1712542242341,-500.0,0.00020979,2]
[321827467,1712542242350,-500.0,0.00020979,2]
[321827468,1712542242359,-500.0,0.00020979,2]
[321827469,1712542242368,-500.0,0.00020979,2]
[321827470,1712542242377,-500.0,0.00020979,2]
[321827471,1712542242386,-500.0,0.00020979,2]
[321827472,1712542242394,-500.0,0.00020979,2]
[321827473,1712542242403,-500.0,0.00020979,2]
[321827474,1712542242412,-500.0,0.00020979,2]
[321827475,1712542242421,-500.0,0.00020979,2]
[321827476,1712542242429,-500.0,0.00020979,2]
[321827477,1712542242438,-500.0,0.00020979,2]
[321827478,1712542242448,-500.0,0.00020979,2]
[321827479,1712542242456,-500.0,0.00020979,2]
[321827480,1712542242466,-222.37096502,0.00020979,2]
[321827481,1712542242474,-500.0,0.00020979,2]
[321827482,1712542242483,-500.0,0.00020979,2]
[321827483,1712542242492,-500.0,0.00020979,2]
[321827484,1712542242502,-500.0,0.00020979,2]
[321827485,1712542242511,-500.0,0.00020979,2]
[321827486,1712542242521,-373.56236626,0.00020979,2]
[321827487,1712542242530,-500.0,0.00020979,2]
[321827488,1712542242539,-500.0,0.00020979,2]
[321827489,1712542242548,-500.0,0.00020979,2]
[321827490,1712542242556,-500.0,0.00020979,2]
[321827491,1712542242565,-500.0,0.00020979,2]
[321827492,1712542242574,-500.0,0.00020979,2]
[321827493,1712542242584,-500.0,0.00020979,2]
[321827494,1712542242592,-239.96070648,0.00020979,2]
[321827495,1712542242601,-500.0,0.00020979,2]
[321827496,1712542242610,-500.0,0.00020979,2]
[321827497,1712542242619,-485.99142153,0.00020979,2]
[321827498,1712542242629,-587.74,0.00020979,2]
[321827499,1712542242637,-587.74,0.00020979,2]
[321827500,1712542242646,-587.74,0.00020979,2]
[321827501,1712542242656,-587.74,0.00020979,2]
[321827502,1712542242665,-588.19771331,0.00020979,2]
[321827503,1712542242675,-587.74,0.00020979,2]
[321827504,1712542242684,-587.74,0.00020979,2]
[321827505,1712542242693,-587.74,0.00020979,2]
[321827506,1712542242702,-587.74,0.00020979,2]
[321827507,1712542242711,-587.74,0.00020979,2]
[321827508,1712542242721,-587.74,0.00020979,2]
[321827509,1712542242730,-587.74,0.00020979,2]
[321827510,1712542242739,-500.0,0.00020979,2]
[321827511,1712542242748,-500.0,0.00020979,2]
[321827512,1712542242757,-500.0,0.00020979,2]
[321827513,1712542242767,-500.0,0.00020979,2]
[321827514,1712542242777,-500.0,0.00020979,2]
[321827515,1712542242786,-500.0,0.00020979,2]
[321827516,1712542242795,-500.0,0.00020979,2]
[321827517,1712542242804,-375.39456002,0.00020979,2]
[321827518,1712542242814,-500.0,0.00020979,2]
[321827519,1712542242823,-500.0,0.00020979,2]
[321827520,1712542242832,-500.0,0.00020979,2]
[321827521,1712542242841,-500.0,0.00020979,2]
[321827522,1712542242851,-500.0,0.00020979,2]
[321827523,1712542242860,-500.0,0.00020979,2]
[321827525,1712542242869,-500.0,0.00020979,2]
[321827526,1712542242878,-500.0,0.00020979,2]
[321827527,1712542242887,-500.0,0.00020979,2]
[321827528,1712542242896,-254.68293178,0.00020979,2]
[321827529,1712542242905,-500.0,0.00020979,2]
[321827530,1712542242914,-500.0,0.00020979,2]
[321827531,1712542242923,-500.0,0.00020979,2]
[321827532,1712542242933,-500.0,0.00020979,2]
[321827533,1712542242942,-500.0,0.00020979,2]
[321827534,1712542242951,-500.0,0.00020979,2]
[321827535,1712542242962,-500.0,0.00020979,2]
[321827536,1712542242972,-500.0,0.00020979,2]
[321827537,1712542242980,-500.0,0.00020979,2]
[321827538,1712542242990,-542.63900407,0.00020979,2]
[321827539,1712542242999,-500.0,0.00020979,2]
[321827540,1712542243009,-500.0,0.00020979,2]
[321827541,1712542243019,-500.0,0.00020979,2]
[321827542,1712542243028,-500.0,0.00020979,2]
[321827543,1712542243037,-390.11692498,0.00020979,2]
[321827544,1712542243046,-413.01608314,0.00020979,2]
[321827545,1712542243055,-500.0,0.00020979,2]
[321827546,1712542243064,-500.0,0.00020979,2]
[321827547,1712542243074,-500.0,0.00020979,2]
[321827548,1712542243083,-500.0,0.00020979,2]
[321827549,1712542243092,-500.0,0.00020979,2]
[321827550,1712542243105,-500.0,0.00020979,2]
[321827551,1712542243114,-268.15099931,0.00020979,2]
[321827552,1712542243123,-500.0,0.00020979,2]
[321827553,1712542243133,-500.0,0.00020979,2]
[321827554,1712542243142,-500.0,0.00020979,2]
[321827555,1712542243152,-500.0,0.00020979,2]
[321827556,1712542243161,-269.21,0.00020979,2]
[321827557,1712542243170,-500.0,0.00020979,2]
[321827558,1712542243181,-500.0,0.00020979,2]
[321827559,1712542243190,-500.0,0.00020979,2]
[321827560,1712542243199,-500.0,0.00020979,2]
[321827561,1712542243209,-345.03173463,0.00020979,2]
[321827562,1712542243218,-500.0,0.00020979,2]
[321827563,1712542243227,-215.25566515,0.00020979,2]
[321827564,1712542243236,-500.0,0.00020979,2]
[321827565,1712542243245,-500.0,0.00020979,2]
[321827566,1712542243255,-500.0,0.00020979,2]
[321827567,1712542243264,-500.0,0.00020979,2]
[321827568,1712542243274,-500.0,0.00020979,2]
[321827569,1712542243283,-442.23920694,0.00020979,2]
[321827570,1712542243292,-807.78,0.00020979,2]
[321827571,1712542243302,-807.78,0.00020979,2]
[321827572,1712542243313,-807.78,0.00020979,2]
[321827573,1712542243322,-807.78,0.00020979,2]
[321827574,1712542243332,-807.78,0.00020979,2]
[321827575,1712542243342,-807.78,0.00020979,2]
[321827576,1712542243352,-807.78,0.00020979,2]
[321827577,1712542243362,-807.78,0.00020979,2]
[321827578,1712542243372,-807.78,0.00020979,2]
[321827579,1712542243381,-807.78,0.00020979,2]
[321827580,1712542243390,-807.78,0.00020979,2]
[321827581,1712542243399,-500.0,0.00020979,2]
[321827582,1712542243409,-555.37065633,0.00020979,2]
[321827583,1712542243418,-532.35372391,0.00020979,2]
[321827584,1712542243427,-500.0,0.00020979,2]
[321827585,1712542243436,-500.0,0.00020979,2]
[321827586,1712542243446,-500.0,0.00020979,2]
[321827587,1712542243455,-500.0,0.00020979,2]
[321827588,1712542243464,-500.0,0.00020979,2]
[321827589,1712542243473,-500.0,0.00020979,2]
[321827590,1712542243482,-500.0,0.00020979,2]
[321827591,1712542243491,-500.0,0.00020979,2]
[321827592,1712542243500,-500.0,0.00020979,2]
[321827593,1712542243509,-500.0,0.00020979,2]
[321827594,1712542243522,-500.0,0.00020979,2]
[321827595,1712542243530,-188.77099583,0.0002098,2]
[321827596,1712542243539,-261631.19335343,0.0002098,2]
[321827597,1712542243548,-2335525.8325201,0.0002098,2]
[321827598,1712542243557,-992.79528,0.0002098,2]
[321827599,1712542243566,-807.78,0.00020993,2]
[321827600,1712542243575,-708.6183756,0.00020994,2]
[321827601,1712542243583,-2695.0671716,0.00020994,2]
[321827602,1712542243592,-36716.9924139,0.00020994,2]
[321827603,1712542243601,-500.0,0.00020996,2]
[321827604,1712542243610,-500.0,0.00020996,2]
[321827605,1712542243619,-500.0,0.00020996,2]
[321827606,1712542243628,-500.0,0.00020996,2]
[321827607,1712542243638,-500.0,0.00020996,2]
[321827608,1712542243646,-500.0,0.00020996,2]
[321827609,1712542243655,-167.71670351,0.00020996,2]
[321827610,1712542243664,-500.0,0.00020996,2]
[321827611,1712542243673,-566.15,0.00020996,2]
[321827612,1712542243682,-927.73,0.00020996,2]
[321827613,1712542243691,-631.05427916,0.00020996,2]
[321827614,1712542243700,-500.0,0.00020997,2]
[321827615,1712542243709,-500.0,0.00020997,2]
[321827616,1712542243718,-500.0,0.00020997,2]
[321827617,1712542243727,-500.0,0.00020997,2]
[321827618,1712542243736,-532.06439082,0.00020997,2]
[321827619,1712542243745,-500.0,0.00020997,2]
[321827620,1712542243754,-500.0,0.00020997,2]
[321827621,1712542243764,-500.0,0.00020997,2]
[321827622,1712542243773,-500.0,0.00020997,2]
[321827623,1712542243783,-566.15,0.00020997,2]
[321827624,1712542243792,-566.15,0.00020997,2]
[321827625,1712542243801,-1128.53,0.00020997,2]
[321827626,1712542243810,-4720.11,0.00020997,2]
[321827627,1712542243819,-500.0,0.00020997,2]
[321827628,1712542243828,-284.72341495,0.00020997,2]
[321827629,1712542243837,-513.68,0.00020997,2]
[321827630,1712542243846,-500.0,0.00020997,2]
[321827631,1712542243855,-500.0,0.00020997,2]
[321827632,1712542243865,-501.98,0.00020997,2]
[321827633,1712542243875,-603.35,0.00020997,2]
[321827634,1712542243884,-798.49,0.00020997,2]
[321827635,1712542243893,-500.0,0.00020997,2]
[321827636,1712542243902,-500.0,0.00020997,2]
[321827637,1712542243911,-10991.64543452,0.00020998,2]
[321827638,1712542243920,-156.12730211,0.00020998,2]
[321827639,1712542243929,-228.88203053,0.00020998,2]
[321827640,1712542243939,-1836.42464432,0.00020998,2]
[321827641,1712542243950,-247.99409113,0.00020998,2]
[321827642,1712542243959,-4205.8892026,0.00020998,2]
[321827643,1712542243968,-500.0,0.00020998,2]
[321827644,1712542243977,-500.0,0.00020998,2]
[321827645,1712542243986,-500.0,0.00020998,2]
[321827646,1712542243995,-566.15,0.00020998,2]
[321827647,1712542244004,-587.74,0.00020998,2]
[321827648,1712542244013,-587.74,0.00020998,2]
[321827649,1712542244022,-587.74,0.00020998,2]
[321827650,1712542244031,-587.74,0.00020998,2]
[321827651,1712542244040,-587.74,0.00020998,2]
[321827652,1712542244049,-587.74,0.00020998,2]
[321827653,1712542244058,-587.74,0.00020998,2]
[321827654,1712542244067,-587.9327,0.00020998,2]
[321827655,1712542244076,-807.78,0.00020998,2]
[321827656,1712542244085,-807.78,0.00020998,2]
[321827657,1712542244094,-807.78,0.00020998,2]
[321827658,1712542244108,-807.78,0.00020998,2]
[321827659,1712542244117,-500.0,0.00020999,2]
[321827660,1712542244126,-412.45668626,0.00020999,2]
[321827661,1712542244135,-500.0,0.00020999,2]
[321827662,1712542244145,-500.0,0.00020999,2]
[321827663,1712542244154,-500.0,0.00020999,2]
[321827664,1712542244163,-500.0,0.00020999,2]
[321827665,1712542244172,-500.0,0.00020999,2]
[321827666,1712542244182,-493.20528896,0.00020999,2]
[321827667,1712542244192,-3666.90316739,0.00020999,2]
[321827668,1712542244203,-206.59266165,0.00020999,2]
[321827669,1712542244213,-500.0,0.00020999,2]
[321827670,1712542244222,-500.0,0.00020999,2]
[321827671,1712542244231,-500.0,0.00020999,2]
[321827672,1712542244241,-500.0,0.00020999,2]
[321827673,1712542244250,-500.0,0.00020999,2]
[321827674,1712542244262,-500.0,0.00020999,2]
[321827675,1712542244272,-500.0,0.00020999,2]
[321827676,1712542244281,-159.79979661,0.00020999,2]
[321827677,1712542244290,-566.15,0.00020999,2]
[321827678,1712542244299,-566.15,0.00020999,2]
[321827679,1712542244308,-566.15,0.00020999,2]
[321827680,1712542244317,-566.15,0.00020999,2]
[321827681,1712542244326,-566.15,0.00020999,2]
[321827682,1712542244336,-566.15,0.00020999,2]
[321827683,1712542244345,-566.15,0.00020999,2]
[321827684,1712542244354,-566.15,0.00020999,2]
[321827685,1712542244363,-233357.31685721,0.00020999,2]
[321827686,1712542244372,-566.15,0.00020999,2]
[321827687,1712542244381,-566.15,0.00020999,2]
[321827688,1712542244390,-566.15,0.00020999,2]
[321827689,1712542244399,-566.15,0.00020999,2]
[321827690,1712542244408,-566.15,0.00020999,2]
[321827691,1712542244417,-566.15,0.00020999,2]
[321827692,1712542244426,-566.15,0.00020999,2]
[321827693,1712542244435,-566.15,0.00020999,2]
[321827694,1712542244443,-566.15,0.00020999,2]
[321827695,1712542244452,-566.15,0.00020999,2]
[321827696,1712542244462,-566.15,0.00020999,2]
[321827697,1712542244471,-566.30614786,0.00020999,2]
[321827698,1712542244480,-538807.18554194,0.00020999,2]
[321827699,1712542244489,-1128.53,0.00020999,2]
[321827700,1712542244498,-1128.53,0.00020999,2]
[321827701,1712542244507,-1128.53,0.00020999,2]
[321827702,1712542244516,-1128.53,0.00020999,2]
[321827703,1712542244526,-1128.53,0.00020999,2]
[321827704,1712542244534,-1128.53,0.00020999,2]
[321827705,1712542244543,-1128.53,0.00020999,2]
[321827706,1712542244553,-1128.53,0.00020999,2]
[321827707,1712542244562,-1128.53,0.00020999,2]
[321827708,1712542244571,-1128.53,0.00020999,2]
[321827709,1712542244581,-1128.70236484,0.00020999,2]
[321827710,1712542244590,-927.73,0.00020999,2]
[321827711,1712542244600,-927.73,0.00020999,2]
[321827712,1712542244609,-927.73,0.00020999,2]
[321827713,1712542244618,-927.73,0.00020999,2]
[321827714,1712542244627,-927.73,0.00020999,2]
[321827715,1712542244636,-927.73,0.00020999,2]
[321827716,1712542244646,-927.73,0.00020999,2]
[321827717,1712542244655,-927.73,0.00020999,2]
[321827718,1712542244664,-927.73,0.00020999,2]
[321827719,1712542244673,-927.73,0.00020999,2]
[321827720,1712542244682,-927.73,0.00020999,2]
[321827721,1712542244692,-927.9171858,0.00020999,2]
[321827722,1712542244701,-4720.11,0.00020999,2]
[321827723,1712542244711,-4720.11,0.00020999,2]
[321827724,1712542244720,-4720.11,0.00020999,2]
[321827725,1712542244729,-4720.11,0.00020999,2]
[321827726,1712542244738,-4720.11,0.00020999,2]
[321827727,1712542244749,-4720.11,0.00020999,2]
[321827728,1712542244758,-4720.11,0.00020999,2]
[321827729,1712542244768,-4720.11,0.00020999,2]
[321827730,1712542244777,-4720.11,0.00020999,2]
[321827731,1712542244787,-4720.11,0.00020999,2]
[321827732,1712542244796,-4720.1601964,0.00020999,2]
[321827733,1712542244805,-500.0,0.00020999,2]
[321827734,1712542244815,-500.0,0.00020999,2]
[321827735,1712542244825,-500.0,0.00020999,2]
[321827736,1712542244834,-500.0,0.00020999,2]
[321827737,1712542244844,-500.0,0.00020999,2]
[321827738,1712542244853,-500.0,0.00020999,2]
[321827739,1712542244862,-334.38651522,0.00020999,2]
[321827740,1712542244872,-513.68,0.00020999,2]
[321827741,1712542244882,-513.68,0.00020999,2]
[321827742,1712542244891,-513.68,0.00020999,2]
[321827743,1712542244901,-513.68,0.00020999,2]
[321827744,1712542244911,-513.68,0.00020999,2]
[321827745,1712542244920,-513.68,0.00020999,2]
[321827746,1712542244929,-513.68,0.00020999,2]
[321827747,1712542244939,-513.68,0.00020999,2]
[321827748,1712542244948,-513.68,0.00020999,2]
[321827749,1712542244958,-513.68,0.00020999,2]
[321827750,1712542244967,-513.81345494,0.00020999,2]
[321827751,1712542244976,-500.0,0.00020999,2]
[321827752,1712542244985,-500.0,0.00020999,2]
[321827753,1712542244994,-500.0,0.00020999,2]
[321827754,1712542245004,-500.0,0.00020999,2]
[321827755,1712542245014,-500.0,0.00020999,2]
[321827756,1712542245023,-500.0,0.00020999,2]
[321827757,1712542245033,-500.0,0.00020999,2]
[321827758,1712542245042,-554.46470326,0.00020999,2]
[321827759,1712542245051,-500.0,0.00020999,2]
[321827760,1712542245060,-500.0,0.00020999,2]
[321827761,1712542245069,-500.0,0.00020999,2]
[321827762,1712542245078,-519.43149455,0.00020999,2]
[321827763,1712542245087,-501.98,0.00020999,2]
[321827764,1712542245096,-501.98,0.00020999,2]
[321827765,1712542245109,-501.98,0.00020999,2]
[321827766,1712542245118,-501.98,0.00020999,2]
[321827767,1712542245126,-501.98,0.00020999,2]
[321827768,1712542245136,-501.98,0.00020999,2]
[321827769,1712542245146,-501.98,0.00020999,2]
[321827770,1712542245155,-501.98,0.00020999,2]
[321827771,1712542245164,-501.98,0.00020999,2]
[321827772,1712542245173,-501.98,0.00020999,2]
[321827773,1712542245347,-502.16345223,0.00020999,2]
[321827774,1712542245357,-603.35,0.00020999,2]
[321827775,1712542245367,-798.49,0.00020999,2]
[321827776,1712542245376,-603.35,0.00020999,2]
[321827777,1712542245386,-798.49,0.00020999,2]
[321827778,1712542245395,-798.49,0.00020999,2]
[321827779,1712542245405,-603.35,0.00020999,2]
[321827780,1712542245416,-798.49,0.00020999,2]
[321827781,1712542245426,-603.35,0.00020999,2]
[321827782,1712542245435,-798.49,0.00020999,2]
[321827783,1712542245445,-603.35,0.00020999,2]
[321827784,1712542245455,-798.49,0.00020999,2]
[321827785,1712542245465,-603.35,0.00020999,2]
[321827786,1712542245475,-798.49,0.00020999,2]
[321827787,1712542245484,-798.49,0.00020999,2]
[321827788,1712542245493,-603.35,0.00020999,2]
[321827789,1712542245503,-603.35,0.00020999,2]
[321827790,1712542245512,-798.49,0.00020999,2]
[321827791,1712542245522,-798.49,0.00020999,2]
[321827792,1712542245531,-603.35,0.00020999,2]
[321827793,1712542245540,-603.35,0.00020999,2]
[321827794,1712542245550,-798.63041979,0.00020999,2]
[321827795,1712542245559,-603.51969865,0.00020999,2]
[321827796,1712542245569,-500.0,0.00020999,2]
[321827797,1712542245578,-500.0,0.00020999,2]
[321827798,1712542245588,-500.0,0.00020999,2]
[321827799,1712542245597,-500.0,0.00020999,2]
[321827800,1712542245607,-339.87431339,0.00020999,2]
[321827801,1712542245616,-807.78,0.00020999,2]
[321827802,1712542245626,-807.78,0.00020999,2]
[321827803,1712542245635,-807.78,0.00020999,2]
[321827804,1712542245645,-807.78,0.00020999,2]
[321827805,1712542245655,-807.78,0.00020999,2]
[321827806,1712542245664,-807.78,0.00020999,2]
[321827807,1712542245674,-807.9470054,0.00020999,2]
[321827808,1712542245683,-500.0,0.00020999,2]
[321827809,1712542245693,-500.0,0.00020999,2]
[321827810,1712542245702,-500.0,0.00020999,2]
[321827811,1712542245712,-500.0,0.00020999,2]
[321827812,1712542245721,-409.18039998,0.00020999,2]
[321827813,1712542245730,-6244806.81808294,0.00021,2]
[321827815,1712542245940,-395723.42110396,0.00021,2]
[321827816,1712542245960,-11070.940885,0.00021,2]
[321827817,1712542245972,-651.8383,0.00021,2]
[321827818,1712542245983,-1220.20775906,0.00021,2]
[321827819,1712542245994,-406.46916604,0.00021,2]
[321827820,1712542246006,-484.4675643,0.00021,2]
[321827827,1712542246114,-48734.37458586,0.00021,2]
[321827831,1712542246142,-500.0,0.00020978,2]
[321827833,1712542246153,-925.94447234,0.00021,2]
[321827835,1712542246165,-15187.99885899,0.00021,2]
[321827836,1712542246185,-428.61941707,0.00020893,2]
[321827837,1712542246198,-132.37172067,0.00020893,2]
[321827838,1712542246207,-182.8185886,0.00021,2]
[321827839,1712542246218,-2906.51699905,0.00021,2]
[321827840,1712542246436,-6.47946659,0.00020979,2]
[321827841,1712542246448,-493.52053341,0.00020979,2]
[321827842,1712542246458,-500.0,0.00020979,2]
[321827843,1712542246467,-159.97946659,0.00020979,2]
[321827844,1712542246479,-340.02053341,0.00020979,2]
[321827845,1712542246488,-420.88940371,0.00020979,2]
[321827846,1712542246512,-79.11059629,0.00020979,2]
[321827847,1712542246522,-417.16577348,0.00020979,2]
[321827848,1712542246534,-82.83422652,0.00020979,2]
[321827849,1712542246544,-500.0,0.00020979,2]
[321827850,1712542246553,-444.13235342,0.00020979,2]
[321827851,1712542246565,-200.97916818,0.00020979,2]
[321827852,1712542246574,-100.57318206,0.00021,2]
[321827853,1712542246946,-592.73,0.00020893,2]
[321827854,1712542246955,-500.0,0.00020893,2]
[321827855,1712542246964,-500.0,0.00020979,2]
[321827856,1712542246973,-500.0,0.00020979,2]
[321827857,1712542246987,-500.0,0.00020979,2]
[321827858,1712542246996,-411.82800311,0.00020979,2]
[321827859,1712542247023,-373.5132,0.00020893,2]
[321827860,1712542247035,-126.4868,0.00020893,2]
[321827861,1712542247044,-88.17199689,0.00020979,2]
[321827862,1712542247053,-500.0,0.00020979,2]
[321827863,1712542247063,-585.77842282,0.00020979,2]
[321827864,1712542247072,-4705.8864836,0.00021,2]
[321827865,1712542247083,-1022.23743917,0.00021,2]
[321827866,1712542247355,-8e-08,0.00020893,2]
[321827867,1712542247385,-499.99999992,0.00020893,2]
[321827868,1712542247394,-500.0,0.00020893,2]
[321827869,1712542247404,-500.0,0.00020893,2]
[321827870,1712542247413,-500.0,0.00020899,2]
[321827871,1712542247422,-82.33093106,0.00020899,2]
[321827872,1712542247434,-417.66906894,0.00020899,2]
[321827873,1712542247443,-444.78181618,0.00020899,2]
[321827874,1712542247453,-268.00982488,0.00020978,2]
[321827875,1712542247462,-500.0,0.00020979,2]
[321827876,1712542247472,-436.01858723,0.00020979,2]
[321827877,1712542247481,-148.04164946,0.00020979,2]
[321827878,1712542247493,-351.95835054,0.00020979,2]
[321827879,1712542247502,-500.0,0.00020979,2]
[321827880,1712542247511,-500.0,0.00020979,2]
[321827881,1712542247523,-500.0,0.00020979,2]
[321827882,1712542247532,-500.0,0.00020979,2]
[321827883,1712542247542,-1302.04167946,0.00021,2]
[321827884,1712542247553,-6077.40496203,0.00021,2]
[321827885,1712542247648,-4.92130786,0.00021,2]
[321827886,1712543134154,-400.89,0.00018115,2]
[321827887,1712543134173,-300.0,0.00018425,2]
[321827888,1712543134194,-3853.64837049,0.00018426,2]
[321827889,1712543177257,20232.76778519,0.00027,30]
[321827890,1712543219771,31311.22227049,0.00026,30]
[321827894,1712543432359,-736.9157082,0.00019,3]
[321827895,1712543432370,-619.38,0.00019,3]
[321827896,1712543432387,-393.7042918,0.00019,3]
[321827897,1712543432396,-414.13,0.00020011,2]
[321827898,1712543432405,-240.62,0.00020014,2]
[321827899,1712543432415,-160.0,0.00020014,2]
[321827900,1712543432424,-1614.88,0.00020038,2]
[321827901,1712543432433,-17.47744656,0.0002014,2]
[321827902,1712543432551,-535.57960679,0.0002014,2]
[321827928,1712543438421,-286.94294665,0.0002014,2]
[321827929,1712543438430,-400.89,0.00020379,2]
[321827930,1712543438439,-150.0,0.000205,2]
[321827931,1712543438448,-166.32613303,0.0002079,2]
[321827932,1712543438457,-330.93176,0.0002079,2]
[321827933,1712543438465,-499.99,0.00020831,2]